fUST/lending_fUST_20250829
["ID","MTS","AMOUNT","RATE_DAILY","PERIOD"]
[381908641,1756401045848,-480.0,0.00019452,2]
[381908642,1756401045857,-480.0,0.00019452,2]
[381908643,1756401045867,-770.96,0.00019452,2]
[381908644,1756401045876,-480.0,0.00019452,2]
[381908645,1756401045887,-860.37,0.00019452,2]
[381908646,1756401045896,-480.0,0.00019452,2]
[381908647,1756401045905,-480.0,0.00019452,2]
[381908648,1756401045915,-1770.7,0.00019452,2]
[381908649,1756401045924,-998.59,0.00019452,2]
[381908650,1756401045934,-480.0,0.00019452,2]
[381908651,1756401045943,-480.0,0.00019452,2]
[381908652,1756401045953,-480.0,0.00019452,2]
[381908653,1756401045962,-290.1613484,0.00019452,2]
[381908654,1756401045972,-480.0,0.00019452,2]
[381908655,1756401045981,-480.0,0.00019452,2]
[381908656,1756401045992,-565.55,0.00019452,2]
[381908657,1756401046002,-480.0,0.00019452,2]
[381908658,1756401046012,-480.0,0.00019452,2]
[381908659,1756401046022,-480.0,0.00019452,2]
[381908660,1756401046032,-480.0,0.00019452,2]
[381908661,1756401046041,-480.0,0.00019452,2]
[381908662,1756401046051,-505.96,0.00019452,2]
[381908663,1756401046061,-480.0,0.00019452,2]
[381908664,1756401046071,-586.55,0.00019452,2]
[381908665,1756401046080,-1362.06,0.00019452,2]
[381908666,1756401046089,-480.0,0.00019452,2]
[381908667,1756401046098,-480.0,0.00019452,2]
[381908668,1756401046108,-480.0,0.00019452,2]
[381908669,1756401046119,-480.0,0.00019452,2]
[381908670,1756401046129,-480.0,0.00019452,2]
[381908671,1756401046138,-480.0,0.00019452,2]
[381908672,1756401046152,-500.0,0.00019473,2]
[381908673,1756401046162,-500.0,0.00019473,2]
[381908674,1756401046172,-500.0,0.00019473,2]
[381908675,1756401046183,-500.0,0.00019473,2]
[381908676,1756401046194,-500.0,0.00019473,2]
[381908677,1756401046204,-645.11635765,0.00019473,2]
[381908678,1756401046214,-584.09703605,0.00019473,2]
[381908679,1756401046224,-500.0,0.00019473,2]
[381908680,1756401046233,-500.0,0.00019473,2]
[381908681,1756401046243,-500.0,0.00019473,2]
[381908682,1756401046252,-500.0,0.00019473,2]
[381908683,1756401046261,-500.0,0.00019473,2]
[381908684,1756401046271,-194.23969264,0.00019473,2]
[381908685,1756401046280,-500.0,0.00019473,2]
[381908686,1756401046289,-160.0,0.00019489,2]
[381908688,1756401046298,-232.64478309,0.00019489,2]
[381908690,1756401046308,-217.27834477,0.00019489,2]
[381908692,1756401046318,-160.0,0.00019489,2]
[381908694,1756401046327,-160.0,0.00019489,2]
[381908696,1756401046336,-417.15472785,0.00019489,2]
[381908698,1756401046345,-12710.44222334,0.00019489,2]
[381908700,1756401046355,-160.0,0.00019489,2]
[381908702,1756401046364,-845.47023312,0.00019489,2]
[381908704,1756401046375,-160.0,0.00019489,2]
[381908706,1756401046384,-160.0,0.00019489,2]
[381908708,1756401046394,-160.0,0.00019489,2]
[381908710,1756401046403,-216.18903889,0.00019489,2]
[381908711,1756401046412,-425.52029335,0.00019489,2]
[381908712,1756401046422,-529.67291817,0.00019489,2]
[381908713,1756401046432,-300.0,0.00019561,20]
[381908714,1756401046441,-300.0,0.00019561,20]
[381908715,1756401046450,-300.0,0.00019561,20]
[381908716,1756401046460,-300.0,0.00019561,20]
[381908717,1756401046469,-300.0,0.00019561,20]
[381908718,1756401046478,-300.0,0.00019561,20]
[381908719,1756401046488,-300.0,0.00019561,20]
[381908720,1756401046497,-300.0,0.00019561,20]
[381908721,1756401046507,-300.0,0.00019561,20]
[381908722,1756401046517,-300.0,0.00019561,20]
[381908723,1756401046526,-300.0,0.00019561,20]
[381908724,1756401046535,-300.0,0.00019561,20]
[381908725,1756401046545,-300.0,0.00019561,20]
[381908726,1756401046554,-300.0,0.00019561,20]
[381908727,1756401046564,-300.0,0.00019561,20]
[381908728,1756401046573,-600.0,0.00019561,20]
[381908729,1756401046583,-151.0,0.00019681,2]
[381908730,1756401046592,-500.0,0.00019681,2]
[381908731,1756401046601,-730.0,0.00019681,2]
[381908732,1756401046611,-151.0,0.00019681,2]
[381908733,1756401046622,-198.0,0.00019681,2]
[381908734,1756401046631,-151.0,0.00019681,2]
[381908735,1756401046642,-151.0,0.00019681,2]
[381908736,1756401046653,-198.0,0.00019681,2]
[381908737,1756401046663,-151.0,0.00019681,2]
[381908738,1756401046672,-365.31550978,0.00019726,2]
[381908739,1756401046682,-480.0,0.00019726,2]
[381908740,1756401046691,-480.0,0.00019726,2]
[381908741,1756401046700,-480.0,0.00019726,2]
[381908742,1756401046710,-480.0,0.00019726,2]
[381908743,1756401046719,-480.0,0.00019726,2]
[381908744,1756401046729,-480.0,0.00019726,2]
[381908745,1756401046738,-480.0,0.00019726,2]
[381908746,1756401046748,-480.0,0.00019726,2]
[381908747,1756401046758,-480.0,0.00019726,2]
[381908748,1756401046767,-480.0,0.00019726,2]
[381908749,1756401046776,-480.0,0.00019726,2]
[381908750,1756401046787,-480.0,0.00019726,2]
[381908751,1756401046796,-480.0,0.00019726,2]
[381908752,1756401046806,-480.0,0.00019726,2]
[381908753,1756401046816,-480.0,0.00019726,2]
[381908754,1756401046825,-480.0,0.00019726,2]
[381908755,1756401046835,-480.0,0.00019726,2]
[381908756,1756401046845,-424.59656544,0.00019726,2]
[381908757,1756401046855,-480.0,0.00019726,2]
[381908758,1756401046864,-480.0,0.00019726,2]
[381908759,1756401046873,-480.0,0.00019726,2]
[381908760,1756401046883,-370.88356942,0.00019726,2]
[381908761,1756401046892,-722.61,0.00019726,2]
[381908762,1756401046902,-480.0,0.00019726,2]
[381908763,1756401046912,-480.0,0.00019726,2]
[381908764,1756401046922,-480.0,0.00019726,2]
[381908765,1756401046931,-480.0,0.00019726,2]
[381908766,1756401046940,-481.36,0.00019726,2]
[381908767,1756401046950,-480.0,0.00019726,2]
[381908768,1756401046959,-480.0,0.00019726,2]
[381908769,1756401046968,-434.27782844,0.00019726,2]
[381908770,1756401046978,-480.0,0.00019726,2]
[381908771,1756401046988,-480.0,0.00019726,2]
[381908772,1756401046998,-480.0,0.00019726,2]
[381908773,1756401047008,-480.0,0.00019726,2]
[381908774,1756401047018,-480.0,0.00019726,2]
[381908775,1756401047027,-480.0,0.00019726,2]
[381908776,1756401047036,-360.34831367,0.00019726,2]
[381908777,1756401047046,-526.37752988,0.00019726,2]
[381908778,1756401047056,-596.83,0.00019726,2]
[381908779,1756401047065,-480.0,0.00019726,2]
[381908782,1756401047074,-480.0,0.00019726,2]
[381908783,1756401047083,-480.0,0.00019726,2]
[381908784,1756401047092,-480.0,0.00019726,2]
[381908785,1756401047102,-480.0,0.00019726,2]
[381908786,1756401047111,-480.0,0.00019726,2]
[381908787,1756401047121,-480.0,0.00019726,2]
[381908788,1756401047130,-480.0,0.00019726,2]
[381908789,1756401047141,-480.0,0.00019726,2]
[381908790,1756401047154,-480.0,0.00019726,2]
[381908791,1756401047164,-480.0,0.00019726,2]
[381908792,1756401047174,-480.0,0.00019726,2]
[381908793,1756401047183,-480.0,0.00019726,2]
[381908794,1756401047193,-480.0,0.00019726,2]
[381908795,1756401047203,-538.59162245,0.00019726,2]
[381908796,1756401047212,-480.0,0.00019726,2]
[381908797,1756401047224,-480.0,0.00019726,2]
[381908798,1756401047235,-480.0,0.00019726,2]
[381908799,1756401047244,-480.0,0.00019726,2]
[381908800,1756401047254,-480.0,0.00019726,2]
[381908801,1756401047263,-480.0,0.00019726,2]
[381908802,1756401047272,-480.0,0.00019726,2]
[381908803,1756401047281,-480.0,0.00019726,2]
[381908804,1756401047290,-480.0,0.00019726,2]
[381908805,1756401047299,-537.58,0.00019726,2]
[381908806,1756401047308,-480.0,0.00019726,2]
[381908807,1756401047317,-480.0,0.00019726,2]
[381908808,1756401047327,-480.0,0.00019726,2]
[381908809,1756401047336,-480.0,0.00019726,2]
[381908810,1756401047345,-480.0,0.00019726,2]
[381908811,1756401047354,-480.0,0.00019726,2]
[381908812,1756401047363,-480.0,0.00019726,2]
[381908813,1756401047373,-480.0,0.00019726,2]
[381908814,1756401047384,-480.0,0.00019726,2]
[381908815,1756401047394,-480.0,0.00019726,2]
[381908816,1756401047403,-480.0,0.00019726,2]
[381908817,1756401047412,-480.0,0.00019726,2]
[381908818,1756401047422,-480.0,0.00019726,2]
[381908819,1756401047432,-480.0,0.00019726,2]
[381908820,1756401047441,-480.0,0.00019726,2]
[381908821,1756401047450,-480.0,0.00019726,2]
[381908822,1756401047459,-480.0,0.00019726,2]
[381908823,1756401047469,-480.0,0.00019726,2]
[381908824,1756401047478,-480.0,0.00019726,2]
[381908825,1756401047487,-480.0,0.00019726,2]
[381908826,1756401047496,-480.0,0.00019726,2]
[381908827,1756401047506,-480.0,0.00019726,2]
[381908828,1756401047515,-480.0,0.00019726,2]
[381908829,1756401047524,-480.0,0.00019726,2]
[381908830,1756401047534,-480.0,0.00019726,2]
[381908831,1756401047543,-480.0,0.00019726,2]
[381908832,1756401047553,-480.0,0.00019726,2]
[381908833,1756401047562,-480.0,0.00019726,2]
[381908834,1756401047571,-480.0,0.00019726,2]
[381908835,1756401047580,-480.0,0.00019726,2]
[381908836,1756401047590,-452.98406637,0.00019726,2]
[381908837,1756401047599,-480.0,0.00019726,2]
[381908838,1756401047608,-480.0,0.00019726,2]
[381908839,1756401047617,-480.0,0.00019726,2]
[381908840,1756401047627,-480.0,0.00019726,2]
[381908841,1756401047636,-480.0,0.00019726,2]
[381908842,1756401047645,-480.0,0.00019726,2]
[381908843,1756401047654,-480.0,0.00019726,2]
[381908844,1756401047663,-746.96,0.00019726,2]
[381908845,1756401047672,-480.0,0.00019726,2]
[381908846,1756401047681,-480.0,0.00019726,2]
[381908847,1756401047690,-342.67567441,0.00019726,2]
[381908848,1756401047700,-480.0,0.00019726,2]
[381908849,1756401047710,-480.0,0.00019726,2]
[381908850,1756401047719,-480.0,0.00019726,2]
[381908851,1756401047728,-480.0,0.00019726,2]
[381908852,1756401047738,-480.0,0.00019726,2]
[381908853,1756401047747,-480.0,0.00019726,2]
[381908854,1756401047756,-480.0,0.00019726,2]
[381908855,1756401047765,-480.0,0.00019726,2]
[381908856,1756401047774,-480.0,0.00019726,2]
[381908857,1756401047784,-480.0,0.00019726,2]
[381908858,1756401047793,-602.06924754,0.00019726,2]
[381908859,1756401047802,-480.0,0.00019726,2]
[381908860,1756401047811,-480.0,0.00019726,2]
[381908861,1756401047820,-582.13762533,0.00019726,2]
[381908862,1756401047830,-481.2369396,0.00019726,2]
[381908863,1756401047839,-480.0,0.00019726,2]
[381908864,1756401047848,-480.0,0.00019726,2]
[381908865,1756401047857,-480.0,0.00019726,2]
[381908866,1756401047866,-480.0,0.00019726,2]
[381908867,1756401047875,-480.0,0.00019726,2]
[381908868,1756401047884,-1733.57,0.00019726,2]
[381908869,1756401047893,-480.0,0.00019726,2]
[381908870,1756401047902,-480.0,0.00019726,2]
[381908871,1756401047912,-480.0,0.00019726,2]
[381908872,1756401047922,-3282.26,0.00019726,2]
[381908873,1756401047931,-611.67699423,0.00019726,2]
[381908874,1756401047940,-1039.86,0.00019726,2]
[381908875,1756401047949,-480.0,0.00019726,2]
[381908876,1756401047959,-480.0,0.00019726,2]
[381908877,1756401047967,-1949.33,0.00019726,2]
[381908878,1756401048117,-480.0,0.00019726,2]
[381908879,1756401048129,-1458.74,0.00019726,2]
[381908880,1756401048139,-480.0,0.00019726,2]
[381908881,1756401048155,-480.0,0.00019726,2]
[381908882,1756401048165,-480.0,0.00019726,2]
[381908883,1756401048175,-1332.44,0.00019726,2]
[381908884,1756401048185,-2130.55,0.00019726,2]
[381908885,1756401048196,-480.0,0.00019726,2]
[381908886,1756401048206,-480.0,0.00019726,2]
[381908887,1756401048215,-480.0,0.00019726,2]
[381908888,1756401048225,-480.0,0.00019726,2]
[381908889,1756401048235,-596.01,0.00019726,2]
[381908890,1756401048245,-480.0,0.00019726,2]
[381908891,1756401048255,-480.0,0.00019726,2]
[381908892,1756401048264,-480.0,0.00019726,2]
[381908893,1756401048273,-858.07,0.00019726,2]
[381908894,1756401048283,-480.0,0.00019726,2]
[381908895,1756401048293,-491.57,0.00019726,2]
[381908896,1756401048302,-608.36,0.00019726,2]
[381908897,1756401048312,-519.15,0.00019726,2]
[381908898,1756401048321,-480.0,0.00019726,2]
[381908899,1756401048332,-274.13897531,0.00019726,2]
[381908900,1756401048342,-480.0,0.00019726,2]
[381908901,1756401048352,-660.08,0.00019726,2]
[381908902,1756401048361,-532.89,0.00019726,2]
[381908903,1756401048371,-1039.54,0.00019726,2]
[381908904,1756401048382,-480.0,0.00019726,2]
[381908905,1756401048393,-577.33,0.00019726,2]
[381908906,1756401048402,-480.0,0.00019726,2]
[381908907,1756401048412,-480.0,0.00019726,2]
[381908908,1756401048422,-883.04,0.00019726,2]
[381908909,1756401048432,-665.23,0.00019726,2]
[381908910,1756401048442,-480.0,0.00019726,2]
[381908911,1756401048451,-480.0,0.00019726,2]
[381908912,1756401048461,-480.0,0.00019726,2]
[381908913,1756401048471,-480.0,0.00019726,2]
[381908914,1756401048482,-480.0,0.00019726,2]
[381908915,1756401048492,-480.0,0.00019726,2]
[381908916,1756401048503,-480.0,0.00019726,2]
[381908917,1756401048513,-480.0,0.00019726,2]
[381908918,1756401048523,-480.0,0.00019726,2]
[381908919,1756401048532,-512.78,0.00019726,2]
[381908920,1756401048543,-480.0,0.00019726,2]
[381908921,1756401048553,-1551.4,0.00019726,2]
[381908922,1756401048564,-1010.73,0.00019726,2]
[381908923,1756401048575,-480.0,0.00019726,2]
[381908924,1756401048585,-480.0,0.00019726,2]
[381908925,1756401048595,-480.0,0.00019726,2]
[381908926,1756401048605,-480.0,0.00019726,2]
[381908927,1756401048615,-480.0,0.00019726,2]
[381908928,1756401048625,-480.0,0.00019726,2]
[381908929,1756401048636,-480.0,0.00019726,2]
[381908930,1756401048645,-1070.38,0.00019726,2]
[381908931,1756401048654,-1204.8,0.00019726,2]
[381908932,1756401048664,-480.0,0.00019726,2]
[381908933,1756401048673,-1098.05,0.00019726,2]
[381908934,1756401048683,-480.0,0.00019726,2]
[381908935,1756401048692,-480.0,0.00019726,2]
[381908936,1756401048703,-480.0,0.00019726,2]
[381908937,1756401048712,-566.52841343,0.00019726,2]
[381908938,1756401048722,-480.0,0.00019726,2]
[381908939,1756401048732,-480.0,0.00019726,2]
[381908940,1756401048742,-309.54657155,0.00019726,2]
[381908941,1756401048752,-480.0,0.00019726,2]
[381908942,1756401048763,-1647.13,0.00019726,2]
[381908943,1756401048773,-633.08,0.00019726,2]
[381908944,1756401048783,-480.0,0.00019726,2]
[381908945,1756401048793,-770.96,0.00019726,2]
[381908946,1756401048803,-480.0,0.00019726,2]
[381908947,1756401048813,-860.37,0.00019726,2]
[381908948,1756401048823,-535.01,0.00019726,2]
[381908949,1756401048834,-1770.7,0.00019726,2]
[381908950,1756401048845,-998.59,0.00019726,2]
[381908951,1756401048855,-480.0,0.00019726,2]
[381908952,1756401048865,-480.0,0.00019726,2]
[381908953,1756401048875,-480.0,0.00019726,2]
[381908954,1756401048888,-480.0,0.00019726,2]
[381908955,1756401048898,-480.0,0.00019726,2]
[381908956,1756401048908,-565.55,0.00019726,2]
[381908957,1756401048918,-480.0,0.00019726,2]
[381908958,1756401048927,-350.90251669,0.00019726,2]
[381908959,1756401048937,-480.0,0.00019726,2]
[381908960,1756401048948,-505.96,0.00019726,2]
[381908961,1756401048957,-450.08194787,0.00019726,2]
[381908962,1756401048968,-586.55,0.00019726,2]
[381908963,1756401048977,-1362.06,0.00019726,2]
[381908964,1756401048987,-480.0,0.00019726,2]
[381908965,1756401048997,-606.05,0.00019726,2]
[381908966,1756401049007,-500.0,0.00019773,2]
[381908967,1756401049017,-500.0,0.00019773,2]
[381908968,1756401049028,-190.0,0.00019845,2]
[381908969,1756401049037,-608.819325,0.00019863,2]
[381908970,1756401049047,-29605.0798254,0.00019872,2]
[381908971,1756401049056,-8079.7363359,0.00019872,2]
[381908972,1756401049066,-65963.80901403,0.000199,2]
[381908973,1756401049075,-868.6467829,0.000199,2]
[381908974,1756401049085,-11638.64597772,0.000199,2]
[381908975,1756401049096,-198.0,0.00019955,2]
[381908976,1756401049106,-281.832113,0.00019955,2]
[381908977,1756401049115,-730.0,0.00019955,2]
[381908978,1756401049125,-151.0,0.00019955,2]
[381908979,1756401049135,-198.0,0.00019955,2]
[381908980,1756401049147,-198.0,0.00019955,2]
[381908981,1756401049158,-201.65837251,0.00019955,2]
[381908982,1756401049167,-151.0,0.00019955,2]
[381908983,1756401049177,-151.0,0.00019955,2]
[381908984,1756401049187,-151.0,0.00019955,2]
[381908985,1756401049197,-151.43310379,0.00019955,2]
[381908986,1756401049206,-500.0,0.00019973,2]
[381908987,1756401049216,-502.48112782,0.00019973,2]
[381908988,1756401049228,-500.0,0.00019973,2]
[381908989,1756401049237,-500.0,0.00019973,2]
[381908990,1756401049247,-500.0,0.00019973,2]
[381908991,1756401049256,-225.902232,0.00019977,2]
[381908992,1756401049266,-151.0,0.00019977,2]
[381908993,1756401049275,-151.0,0.00019977,2]
[381908994,1756401049285,-151.0,0.00019977,2]
[381908995,1756401049294,-151.0,0.00019977,2]
[381908996,1756401049303,-151.0,0.00019977,2]
[381908997,1756401049313,-151.0,0.00019977,2]
[381908998,1756401049323,-151.0,0.00019977,2]
[381908999,1756401049332,-152.758054,0.00019977,2]
[381909000,1756401049341,-151.0,0.00019977,2]
[381909001,1756401049351,-151.0,0.00019977,2]
[381909002,1756401049361,-151.0,0.00019977,2]
[381909003,1756401049371,-151.0,0.00019977,2]
[381909004,1756401049382,-151.0,0.00019977,2]
[381909005,1756401049392,-990.815,0.00019977,2]
[381909006,1756401049402,-2261.869,0.00019977,2]
[381909007,1756401049411,-160.0,0.00019977,2]
[381909008,1756401049421,-640.03,0.00019977,2]
[381909009,1756401049430,-2801.21,0.00019999,2]
[381909010,1756401049440,-663.82084539,0.0002,2]
[381909011,1756401049449,-36540.1971488,0.0002,20]
[381909012,1756401049459,-480.0,0.0002,2]
[381909013,1756401049468,-480.0,0.0002,2]
[381909014,1756401049478,-499.56,0.0002,2]
[381909015,1756401049488,-480.0,0.0002,2]
[381909016,1756401049497,-480.0,0.0002,2]
[381909017,1756401049507,-480.0,0.0002,2]
[381909018,1756401049516,-480.0,0.0002,2]
[381909019,1756401049526,-480.0,0.0002,2]
[381909020,1756401049535,-480.0,0.0002,2]
[381909021,1756401049544,-480.0,0.0002,2]
[381909022,1756401049554,-480.0,0.0002,2]
[381909023,1756401049563,-480.0,0.0002,2]
[381909024,1756401049573,-480.0,0.0002,2]
[381909025,1756401049582,-480.0,0.0002,2]
[381909026,1756401049592,-480.0,0.0002,2]
[381909027,1756401049601,-480.0,0.0002,2]
[381909028,1756401049611,-722.61,0.0002,2]
[381909029,1756401049620,-549.14,0.0002,2]
[381909030,1756401049633,-480.0,0.0002,2]
[381909031,1756401049642,-480.0,0.0002,2]
[381909032,1756401049651,-491.17020033,0.0002,2]
[381909033,1756401049661,-480.0,0.0002,2]
[381909034,1756401049670,-154.24,0.0002,2]
[381909035,1756401049684,-596.22912422,0.0002,2]
[381909036,1756401049697,-480.0,0.0002,2]
[381909037,1756401049710,-480.0,0.0002,2]
[381909038,1756401049723,-480.0,0.0002,2]
[381909039,1756401049735,-480.0,0.0002,2]
[381909040,1756401049746,-596.83,0.0002,2]
[381909041,1756401049758,-189.860335,0.0002,3]
[381909042,1756401049770,-480.0,0.0002,2]
[381909043,1756401049782,-189.860335,0.0002,20]
[381909044,1756401049794,-189.860335,0.0002,2]
[381909045,1756401049806,-480.0,0.0002,2]
[381909046,1756401049818,-480.0,0.0002,2]
[381909047,1756401049831,-189.860335,0.0002,10]
[381909048,1756401049843,-480.0,0.0002,2]
[381909049,1756401049856,-456.29058473,0.0002,2]
[381909050,1756401049868,-480.0,0.0002,2]
[381909051,1756401049883,-480.0,0.0002,2]
[381909052,1756401049895,-480.0,0.0002,2]
[381909053,1756401049907,-480.0,0.0002,2]
[381909054,1756401049919,-404.46065883,0.0002,2]
[381909055,1756401049930,-480.0,0.0002,2]
[381909056,1756401049943,-504.23,0.0002,2]
[381909057,1756401049955,-480.0,0.0002,2]
[381909058,1756401049966,-480.0,0.0002,2]
[381909059,1756401049978,-163.10390125,0.0002,2]
[381909060,1756401049988,-480.0,0.0002,2]
[381909061,1756401049998,-480.0,0.0002,2]
[381909062,1756401050009,-480.0,0.0002,2]
[381909063,1756401050020,-537.58,0.0002,2]
[381909064,1756401050031,-371.63527356,0.0002,2]
[381909065,1756401050043,-390.10263995,0.0002,2]
[381909066,1756401050056,-480.0,0.0002,2]
[381909067,1756401050068,-480.0,0.0002,2]
[381909068,1756401050081,-480.0,0.0002,2]
[381909069,1756401050093,-480.0,0.0002,2]
[381909070,1756401050105,-409.19852128,0.0002,2]
[381909071,1756401050118,-480.0,0.0002,2]
[381909072,1756401050133,-480.0,0.0002,2]
[381909073,1756401050147,-216.063153,0.0002,2]
[381909074,1756401050160,-151.0,0.0002,2]
[381909075,1756401050170,-151.0,0.0002,2]
[381909076,1756401050180,-480.0,0.0002,2]
[381909077,1756401050191,-480.0,0.0002,2]
[381909078,1756401050203,-480.0,0.0002,2]
[381909079,1756401050215,-480.0,0.0002,2]
[381909080,1756401050230,-480.0,0.0002,2]
[381909081,1756401050242,-480.0,0.0002,2]
[381909082,1756401050252,-480.0,0.0002,2]
[381909083,1756401050263,-480.0,0.0002,2]
[381909084,1756401050273,-480.0,0.0002,2]
[381909085,1756401050284,-480.0,0.0002,2]
[381909086,1756401050296,-480.0,0.0002,2]
[381909087,1756401050307,-480.0,0.0002,2]
[381909088,1756401050318,-480.0,0.0002,2]
[381909089,1756401050329,-480.0,0.0002,2]
[381909090,1756401050340,-480.0,0.0002,2]
[381909091,1756401050351,-151.0,0.0002,2]
[381909092,1756401050362,-480.0,0.0002,2]
[381909093,1756401050373,-480.0,0.0002,2]
[381909094,1756401050386,-480.0,0.0002,2]
[381909095,1756401050397,-480.0,0.0002,2]
[381909096,1756401050407,-480.0,0.0002,2]
[381909097,1756401050418,-480.0,0.0002,2]
[381909098,1756401050429,-480.0,0.0002,2]
[381909099,1756401050440,-746.96,0.0002,2]
[381909100,1756401050451,-480.0,0.0002,2]
[381909101,1756401050462,-343.41210199,0.0002,2]
[381909102,1756401050473,-151.0,0.0002,2]
[381909103,1756401050485,-151.0,0.0002,2]
[381909104,1756401050496,-151.0,0.0002,2]
[381909105,1756401050508,-480.0,0.0002,2]
[381909106,1756401050519,-480.0,0.0002,2]
[381909107,1756401050530,-480.0,0.0002,2]
[381909108,1756401050541,-480.0,0.0002,2]
[381909109,1756401050552,-151.0,0.0002,2]
[381909110,1756401050563,-480.0,0.0002,2]
[381909111,1756401050574,-151.0,0.0002,2]
[381909112,1756401050585,-480.0,0.0002,2]
[381909113,1756401050596,-480.0,0.0002,2]
[381909114,1756401050607,-480.0,0.0002,2]
[381909115,1756401050618,-480.0,0.0002,2]
[381909116,1756401050630,-151.0,0.0002,2]
[381909117,1756401050641,-151.0,0.0002,2]
[381909118,1756401050652,-480.0,0.0002,2]
[381909119,1756401050663,-480.0,0.0002,2]
[381909120,1756401050674,-1733.57,0.0002,2]
[381909121,1756401050685,-480.0,0.0002,2]
[381909122,1756401050696,-480.0,0.0002,2]
[381909123,1756401050707,-3282.26,0.0002,2]
[381909124,1756401050719,-1039.86,0.0002,2]
[381909125,1756401050730,-480.0,0.0002,2]
[381909126,1756401050740,-480.0,0.0002,2]
[381909127,1756401050754,-1949.33,0.0002,2]
[381909128,1756401050764,-497.76,0.0002,2]
[381909129,1756401050775,-1458.74,0.0002,2]
[381909130,1756401050787,-151.0,0.0002,2]
[381909131,1756401050798,-235.215668,0.0002,2]
[381909132,1756401050809,-480.0,0.0002,2]
[381909133,1756401050820,-480.0,0.0002,2]
[381909134,1756401050831,-480.0,0.0002,2]
[381909135,1756401050842,-151.0,0.0002,2]
[381909136,1756401050852,-1332.44,0.0002,2]
[381909137,1756401050863,-2130.55,0.0002,2]
[381909138,1756401050876,-151.0,0.0002,2]
[381909139,1756401050887,-151.0,0.0002,2]
[381909140,1756401050898,-480.0,0.0002,2]
[381909141,1756401050908,-480.0,0.0002,2]
[381909142,1756401050919,-480.0,0.0002,2]
[381909143,1756401050930,-596.01,0.0002,2]
[381909144,1756401050941,-480.0,0.0002,2]
[381909145,1756401050953,-480.0,0.0002,2]
[381909146,1756401050965,-858.07,0.0002,2]
[381909147,1756401050976,-480.0,0.0002,2]
[381909148,1756401050988,-491.57,0.0002,2]
[381909149,1756401050999,-608.36,0.0002,2]
[381909150,1756401051010,-160.0,0.0002,3]
[381909151,1756401051022,-480.0,0.0002,2]
[381909152,1756401051032,-660.08,0.0002,2]
[381909153,1756401051044,-1039.54,0.0002,2]
[381909154,1756401051055,-480.0,0.0002,2]